bitfinex/quotes_ETHUSD_20251119
["timestamp","ask_amount","ask_price","bid_price","bid_amount"]
[1763521386688,0.002,3121.9,3121.8,4.07784807]
[1763521387294,0.002,3121.9,3121.8,1.77206398]
[1763521389319,0.002,3121.9,3121.8,0.86507134]
[1763521389521,0.002,3121.9,3121.8,1.35697134]
[1763521391729,1.1826,3121.9,3121.8,0.94506734]
[1763521392027,1.1826,3121.9,3121.8,0.4919]
[1763521392602,1.1826,3121.9,3121.1,2.5332665]
[1763521392923,0.4919,3121.8,3121.3,0.96361239]
[1763521393329,0.4922,3121.4,3121.3,1.17406113]
[1763521394032,0.4919,3121.8,3121.3,1.17406113]
[1763521394202,0.4919,3121.8,3121.3,0.96361239]
[1763521394820,0.002,3121.9,3121.4,0.0320369]
[1763521395911,0.1985,3121.9,3121.4,0.0320369]
[1763521396125,0.6904,3121.9,3121.4,0.0320369]
[1763521396823,0.1985,3121.9,3121.4,0.0320369]
[1763521397439,0.1985,3121.9,3121.5,0.4919]
[1763521398114,0.1985,3121.9,3121.5,0.52393588]
[1763521398730,0.002,3121.9,3121.8,0.0064]
[1763521398929,0.002,3121.9,3121.8,0.4439368]
[1763521399311,0.002,3121.9,3121.8,0.411904]
[1763521400022,1.1826,3121.9,3121.6,0.405504]
[1763521400739,0.6907,3121.9,3121.6,0.405504]
[1763521402444,0.6907,3121.9,3121.8,0.0064]
[1763521402445,0.002,3121.9,3121.8,0.0064]
[1763521402648,0.002,3121.9,3121.8,0.0384328]
[1763521403546,0.002,3121.9,3121.8,0.411904]
[1763521405121,0.002,3121.9,3121.8,0.4503368]
[1763521405668,0.002,3121.9,3121.8,0.4439368]
[1763521406448,0.002,3121.9,3121.8,0.4503368]
[1763521406836,0.002,3122.3,3121.8,5.98475599]
[1763521407040,0.002,3122.3,3122.2,5.94632319]
[1763521407729,0.002,3122.6,3122.3,1.31249664]
[1763521408053,0.4962,3123.3,3122.5,0.411904]
[1763521408239,0.1931,3122.9,3122.7,5.93992319]
[1763521408832,0.9955,3122.8,3122.5,4.62742655]
[1763521409033,0.9955,3122.8,3122.6,0.90699264]
[1763521409348,0.002,3122.8,3122.7,0.411904]
[1763521409763,0.002,3122.8,3122.7,0.589104]
[1763521409965,0.4993,3122.8,3122.7,0.1836]
[1763521410346,0.002,3123.5,3122.8,0.405504]
[1763521410545,0.002,3123.5,3123.1,5.94632319]
[1763521410772,0.002,3123.5,3123.1,6.54799551]
[1763521410965,0.002,3123.5,3123.3,0.405504]
[1763521411170,0.002,3123.5,3123.4,0.0064]
[1763521411682,0.002,3123.5,3123.4,0.605004]
[1763521411981,0.4993,3123.5,3123.4,0.1931]
[1763521412284,0.9955,3123.5,3123.4,0.1931]
[1763521412656,0.4993,3123.5,3123.4,0.1931]
[1763521413052,0.9955,3123.5,3123.4,0.1931]
[1763521413251,0.9955,3123.5,3122.7,0.405504]
[1763521413481,0.9955,3123.5,3123.3,0.4993]
[1763521413875,0.4973,3123.4,3123.3,0.4993]
[1763521414051,0.9935,3123.4,3123.3,0.4993]
[1763521415452,0.9935,3123.4,3122.6,0.405504]
[1763521415656,0.002,3123.5,3122.8,0.96308031]
[1763521415873,0.002,3123.5,3122.9,0.03202151]
[1763521417703,0.002,3123.5,3123.0,0.405504]
[1763521418284,0.002,3123.5,3123.1,0.4962]
[1763521418484,0.4555,3123.4,3123.1,0.4962]
[1763521418684,0.4767,3123.2,3123.1,0.4962]
[1763521419307,0.9322,3123.2,3123.1,0.4962]
[1763521421583,0.002,3123.5,3123.1,0.4962]
[1763521421784,0.002,3123.5,3123.2,0.03201844]
[1763521422084,0.002,3123.5,3123.4,0.0064]
[1763521422283,0.002,3123.5,3123.4,0.03841639]
[1763521422611,0.002,3123.5,3123.4,0.03201639]
[1763521422772,0.002,3123.5,3123.3,0.863004]
[1763521423282,0.4767,3123.4,3123.3,0.863004]
[1763521423719,0.4575,3123.5,3123.3,0.863004]
[1763521424006,0.002,3123.5,3123.3,0.863004]
[1763521424186,0.4767,3123.4,3123.3,0.863004]
[1763521424921,0.002,3123.5,3123.3,0.863004]
[1763521425724,0.4767,3123.4,3123.3,0.863004]
[1763521426220,0.9322,3123.4,3123.3,0.863004]
[1763521426421,0.9322,3123.4,3123.3,1.04000366]
[1763521426624,0.002,3123.5,3123.3,1.04000366]
[1763521426824,0.002,3123.5,3123.3,0.863004]
[1763521427000,0.002,3123.5,3123.3,0.405504]
[1763521427200,0.002,3123.5,3123.4,0.4555]
[1763521427833,0.4787,3123.5,3123.4,0.4555]
[1763521428325,0.002,3123.5,3123.4,0.4555]
[1763521430119,0.4787,3123.5,3123.4,0.4555]
[1763521431287,0.002,3123.5,3123.4,0.4619]
[1763521431516,0.002,3123.5,3123.4,0.49391639]
[1763521431919,0.002,3123.5,3123.4,1.80641303]
[1763521432138,0.002,3123.5,3123.4,2.60333582]
[1763521432542,0.002,3123.5,3123.4,2.57131943]
[1763521432741,0.002,3123.7,3123.4,2.57131943]
[1763521432913,0.002,3123.7,3123.6,0.0064]
[1763521433237,0.002,3123.7,3123.6,0.44391834]
[1763521433435,0.002,3123.7,3123.6,0.78707163]
[1763521433661,0.002,3123.7,3123.6,1.69406427]
[1763521434707,0.002,3123.7,3123.6,1.66204993]
[1763521436209,0.002,3123.7,3123.6,1.69406427]
[1763521436838,0.002,3123.7,3123.6,6.21362356]
[1763521437220,0.002,3123.7,3123.6,8.51300765]
[1763521437421,0.002,3123.7,3123.6,8.48099331]
[1763521437741,0.002,3123.7,3123.6,9.12159916]
[1763521438703,0.002,3123.7,3123.6,9.12799916]
[1763521439107,0.002,3123.7,3123.6,9.12159916]
[1763521439305,0.002,3123.7,3123.6,6.82221507]
[1763521439516,0.4787,3123.7,3123.6,6.81581507]
[1763521440023,0.002,3123.7,3123.6,6.81581507]
[1763521441355,0.002,3123.7,3123.6,4.6479292]
[1763521441356,0.9342,3123.7,3123.6,4.6479292]
[1763521442035,0.9342,3123.7,3123.6,0.12836991]
[1763521442559,0.9342,3123.7,3123.4,0.001]
[1763521442759,0.4767,3123.5,3123.4,0.001]
[1763521442927,0.4767,3123.5,3123.2,0.9342]
[1763521443128,0.4767,3123.3,3123.0,0.001]
[1763521443329,0.3445,3123.1,3123.0,0.001]
[1763521443834,0.8,3123.1,3123.0,0.001]
[1763521445975,0.8,3123.1,3122.7,0.001]
[1763521446134,0.6586,3122.8,3122.7,0.001]
[1763521446555,1.1286,3122.8,3122.7,0.001]
[1763521448054,0.4754,3122.8,3122.7,0.001]
[1763521449487,0.9454,3122.8,3122.7,0.001]
[1763521450058,0.1932,3122.9,3122.7,0.001]
[1763521450260,0.47,3123.5,3122.8,0.4907]
[1763521450492,0.47,3123.6,3122.9,0.03202151]
[1763521450679,0.47,3123.6,3122.8,0.03202254]
[1763521451761,0.002,3123.7,3122.8,0.50042254]
[1763521452281,0.472,3123.7,3122.9,0.47]
[1763521452612,0.472,3123.7,3123.0,0.03202049]
[1763521452893,0.002,3123.7,3123.1,0.65962608]
[1763521453099,0.002,3123.7,3123.2,0.03201844]
[1763521453257,0.002,3123.6,3123.1,1.29712608]
[1763521453593,0.472,3123.6,3123.1,0.65962608]
[1763521453775,0.002,3123.6,3123.1,0.65962608]
[1763521454094,0.002,3123.6,3123.2,0.1691]
[1763521454610,0.002,3123.6,3123.5,0.4907]
[1763521455178,0.002,3123.6,3123.3,0.405504]
[1763521455693,0.002,3123.6,3123.4,0.12838062]
[1763521455901,0.47,3123.5,3123.4,0.12838062]
[1763521456083,0.4691,3123.5,3123.4,0.12838062]
[1763521456283,0.002,3123.6,3123.4,0.12838062]
[1763521456489,0.4691,3123.5,3123.4,0.12838062]
[1763521456986,0.9391,3123.5,3123.4,0.12838062]
[1763521458692,0.4691,3123.5,3123.4,0.12838062]
[1763521459592,0.4691,3123.5,3123.1,4.68872608]
[1763521459795,0.4691,3123.5,3123.3,0.4691]
[1763521459996,0.4691,3123.2,3123.1,4.76699264]
[1763521460198,0.4691,3123.2,3123.1,5.23609264]
[1763521462110,0.002,3123.6,3123.2,0.90699264]
[1763521462266,0.002,3123.6,3123.5,0.4907]
[1763521462784,0.002,3123.6,3123.5,1.39769264]
[1763521462963,0.002,3123.6,3123.5,2.83617983]
[1763521463702,0.002,3123.7,3123.5,2.83617983]
[1763521463885,0.002,3123.7,3123.6,0.9717]
[1763521464089,0.002,3123.7,3123.6,5.73869264]
[1763521464394,0.002,3123.7,3123.6,6.14419664]
[1763521464695,0.002,3123.7,3123.6,7.46089752]
[1763521467103,0.002,3124.2,3123.9,0.405504]
[1763521467402,0.002,3124.2,3124.0,1.31249664]
[1763521467606,0.002,3124.2,3124.0,1.80629664]
[1763521467807,0.4654,3125.1,3124.0,1.80629664]
[1763521467808,0.4654,3125.1,3124.4,0.405504]
[1763521467974,0.4654,3125.1,3124.6,6.09424028]
[1763521468300,0.4654,3125.5,3124.7,0.60942403]
[1763521468499,0.4654,3125.5,3124.7,1.98181667]
[1763521469188,0.497,3124.8,3124.7,1.98181667]
[1763521469803,0.9624,3124.8,3124.7,0.4654]
[1763521470172,0.4654,3125.2,3124.7,0.4654]
[1763521470366,0.4654,3125.2,3124.7,0.9592]
[1763521470902,0.6898,3124.8,3124.7,0.4654]
[1763521471408,1.1552,3124.8,3124.7,0.4654]
[1763521471824,0.6898,3124.8,3124.7,0.4654]
[1763521472132,0.4654,3125.2,3124.7,0.4654]
[1763521472273,0.6898,3124.8,3124.7,0.4654]
[1763521472670,0.6918,3124.8,3124.7,0.4654]
[1763521473075,1.1572,3124.8,3124.7,0.4654]
[1763521473539,0.002,3124.8,3124.7,0.4654]
[1763521473843,0.499,3124.8,3124.7,0.4654]
[1763521474004,0.002,3124.8,3124.7,1.86619264]
[1763521474204,0.002,3124.8,3124.7,2.248229]
[1763521474405,0.499,3124.8,3124.7,2.248229]
[1763521474602,0.002,3124.8,3124.7,2.71002593]
[1763521474916,0.002,3124.8,3124.7,2.742029]
[1763521476602,0.002,3124.8,3124.7,3.226029]
[1763521476809,0.002,3124.8,3124.7,2.742029]
[1763521477325,0.002,3124.8,3124.7,3.147533]
[1763521477625,0.002,3124.8,3124.7,3.78015621]
[1763521477927,0.002,3124.8,3124.7,4.23215314]
[1763521478138,0.002,3124.8,3124.7,3.74815314]
[1763521478298,0.002,3124.8,3124.7,2.248229]
[1763521478299,0.4597,3124.8,3124.7,2.248229]
[1763521478644,0.002,3124.8,3124.7,2.747429]
[1763521478923,0.002,3124.8,3124.7,3.231429]
[1763521479513,0.002,3124.8,3124.7,4.27455667]
[1763521479721,0.002,3124.8,3124.7,4.2425536]
[1763521479928,0.002,3124.8,3124.7,3.7585536]
[1763521480294,0.4597,3124.8,3124.7,3.2593536]
[1763521481609,0.4597,3124.8,3124.7,2.21622593]
[1763521481814,0.4597,3124.8,3124.7,0.4654]
[1763521482049,0.9527,3124.8,3124.7,0.4654]
[1763521482837,0.002,3124.8,3124.1,0.1691]
[1763521483033,0.4597,3124.8,3124.3,1.85969264]
[1763521483204,0.3105,3124.4,3123.7,6.09424028]
[1763521483419,0.493,3124.7,3123.7,6.45584878]
[1763521483607,0.493,3124.7,3124.1,0.4597]
[1763521484004,0.4577,3124.2,3124.1,0.4597]
[1763521484246,0.4577,3124.2,3123.7,0.3616085]
[1763521484543,0.493,3124.1,3123.8,0.493]
[1763521484908,0.3105,3123.9,3123.8,0.493]
[1763521485362,0.5096,3123.9,3123.8,0.493]
[1763521485654,1.0026,3123.9,3123.4,0.90699264]
[1763521485950,1.0026,3123.9,3123.5,1.4396617]
[1763521486310,1.0026,3123.9,3123.5,2.09010044]
[1763521486607,0.1991,3124.2,3123.6,0.1845]
[1763521486806,0.405504,3126.2,3123.6,1.09149264]
[1763521487011,1.39363233,3126.2,3123.6,1.09149264]
[1763521487211,0.405504,3126.0,3123.6,1.09149264]
[1763521487570,0.7045667,3126.0,3123.6,1.09149264]
[1763521487708,0.405504,3125.8,3123.7,0.36655931]
[1763521487906,0.7045667,3125.8,3123.7,0.36655931]
[1763521488105,0.405504,3125.6,3123.7,0.85055931]
[1763521488405,0.493,3125.7,3123.8,0.03201229]
[1763521488612,0.493,3125.6,3123.8,0.51601229]
[1763521488930,0.50255,3125.2,3123.8,0.51601229]
[1763521489410,0.493,3125.1,3123.8,0.51601229]
[1763521489745,0.493,3125.1,3123.8,0.17895642]
[1763521489942,0.493,3125.1,3123.8,0.001]
[1763521490333,0.1989,3123.9,3123.8,0.001]
[1763521490841,0.6919,3123.9,3123.8,0.001]
[1763521491042,0.1989,3124.2,3123.8,0.001]
[1763521491244,0.4577,3123.9,3123.8,0.001]
[1763521500137,0.1989,3124.2,3123.8,0.5002]
[1763521500344,0.1989,3124.4,3123.9,0.03201126]
[1763521500744,0.4577,3124.0,3123.8,0.001]
[1763521500950,0.4577,3123.9,3123.8,0.001]
[1763521503377,0.4577,3123.9,3123.4,0.001]
[1763521503583,0.4577,3123.5,3123.4,0.001]
[1763521514068,0.405504,3124.2,3123.4,0.4694]
[1763521514471,0.4875,3124.1,3123.4,0.4694]
[1763521514781,0.4875,3124.1,3123.4,0.001]
[1763521518412,0.6864,3124.4,3123.4,0.001]
[1763521518594,0.4875,3124.3,3123.4,0.001]
[1763521519103,0.4875,3124.3,3123.4,0.4845]
[1763521519604,0.1989,3124.4,3123.4,0.4845]
[1763521522875,0.1989,3124.4,3123.4,0.001]
[1763521522876,0.4778,3124.3,3123.4,0.001]
[1763521523796,0.50270766,3124.1,3123.4,0.001]
[1763521524182,0.4778,3124.0,3123.4,0.001]
[1763521525427,0.0714,3123.5,3123.4,0.001]
[1763521525902,0.50270766,3124.1,3123.4,0.9406]
[1763521526679,0.50270766,3124.1,3124.0,0.4547]
[1763521528213,0.57410766,3124.1,3123.4,0.4859]
[1763521528914,1.04790766,3124.1,3123.4,0.4859]
[1763521530015,0.57410766,3124.1,3123.4,0.4859]
[1763521531817,1.04790766,3124.1,3123.4,0.001]
[1763521532315,0.4738,3124.0,3123.4,0.001]
[1763521532704,0.1989,3123.9,3123.4,0.001]
[1763521533306,0.50270766,3124.1,3123.4,0.4859]
[1763521533891,0.98050766,3124.1,3123.4,0.001]
[1763521536525,0.98050766,3124.1,3123.4,0.4996]
[1763521539224,0.98050766,3124.1,3123.4,0.001]
[1763521539528,0.471,3124.0,3123.4,0.001]
[1763521539930,0.50270766,3124.1,3123.5,0.4838]
[1763521540116,0.97370766,3124.1,3123.5,0.4838]
[1763521540309,0.97370766,3124.1,3123.4,0.001]
[1763521540629,0.471,3124.0,3123.4,0.001]
[1763521541249,0.0782,3123.5,3123.4,0.001]
[1763521543620,0.30242816,3124.1,3123.4,0.4655]
[1763521543923,0.473,3124.1,3123.4,0.4655]
[1763521544325,0.77342816,3124.1,3123.4,0.001]
[1763521544827,0.4726,3124.0,3123.4,0.001]
[1763521546244,0.002,3124.1,3123.9,0.5]
[1763521546245,0.30261869,3124.1,3123.9,0.5]
[1763521546418,0.30261869,3124.1,3123.4,0.001]
[1763521546745,0.77521869,3124.1,3123.4,0.001]
[1763521547121,0.4726,3124.0,3123.4,0.001]
[1763521547941,0.30261869,3124.1,3123.4,0.001]
[1763521548156,0.77521869,3124.1,3123.4,0.001]
[1763521548524,0.0767,3123.5,3123.4,0.001]
[1763521549942,0.5453,3123.5,3123.4,0.001]
[1763521550145,0.0767,3123.5,3123.4,0.001]
[1763521550659,0.5453,3123.5,3123.4,0.001]
[1763521552759,0.84593735,3123.5,3123.4,0.001]
[1763521552935,0.5453,3123.5,3123.4,0.001]
[1763521553565,0.84593735,3123.5,3123.4,0.001]
[1763521553766,1.87921109,3123.5,3123.4,0.001]
[1763521553969,3.47856169,3123.5,3123.4,0.001]
[1763521554337,2.78620373,3123.5,3123.4,0.001]
[1763521556113,1.31249664,3123.4,3123.1,0.001]
[1763521556279,1.31249664,3123.0,3122.7,0.001]
[1763521556481,6.48296406,3122.8,3122.7,0.001]
[1763521556809,6.78360141,3122.8,3122.7,0.001]
[1763521556966,6.89170141,3122.8,3122.7,0.001]
[1763521557167,7.58087155,3122.8,3122.7,0.001]
[1763521558602,8.08382817,3122.8,3122.7,0.001]
[1763521560900,1.31249664,3122.3,3121.4,0.001]
[1763521561075,0.698404,3121.5,3121.4,0.001]
[1763521561276,0.85894366,3121.5,3121.4,0.001]
[1763521561499,1.32784366,3121.5,3121.4,0.001]
[1763521561798,0.881804,3121.4,3121.0,0.001]
[1763521561967,0.881804,3121.4,3120.4,0.001]
[1763521561968,1.31249664,3121.0,3120.4,0.001]
[1763521562166,6.02546406,3120.8,3120.4,0.001]
[1763521562387,1.31249664,3120.7,3120.4,0.001]
[1763521562598,0.405504,3120.5,3120.4,0.001]
[1763521562775,1.61242343,3120.5,3120.4,0.001]
[1763521562977,2.08502343,3120.5,3120.4,0.001]
[1763521563519,1.78619664,3120.5,3120.4,0.001]
[1763521569717,2.55970434,3120.5,3120.4,0.001]
[1763521569906,2.81567477,3120.5,3120.4,0.001]
[1763521570106,0.90699264,3120.4,3118.5,0.4513]
[1763521570419,0.405504,3120.3,3118.5,0.4513]
[1763521570616,0.405504,3120.1,3118.5,0.4513]
[1763521570933,0.405504,3119.9,3118.5,0.4513]
[1763521571433,0.405504,3119.9,3118.2,0.16734844]
[1763521571434,0.405504,3119.7,3118.2,0.61864844]
[1763521571599,1.1790117,3119.7,3118.2,0.61864844]
[1763521571929,1.1790117,3119.7,3117.9,0.1851]
[1763521571930,0.4899,3119.6,3117.9,0.1851]
[1763521572130,0.4899,3119.6,3118.1,0.4513]
[1763521572433,0.405504,3119.5,3118.1,0.4513]
[1763521572759,0.188,3120.1,3119.5,0.4993]
[1763521572899,0.6779,3120.1,3119.3,0.1959]
[1763521573098,0.6779,3120.1,3119.0,0.1959]
[1763521573437,0.0963,3119.4,3118.6,0.4513]
[1763521573803,0.486,3119.8,3118.6,0.4513]
[1763521574199,0.405504,3119.7,3117.9,1.09209264]
[1763521574405,0.405504,3119.7,3118.3,0.4513]
[1763521574701,0.405504,3119.5,3118.3,0.4513]
[1763521575248,0.405504,3119.3,3118.3,0.4513]
[1763521575739,0.405504,3119.4,3118.3,0.4513]
[1763521576240,0.405504,3119.3,3118.3,0.4513]
[1763521577313,0.4899,3119.3,3118.3,0.4513]
[1763521578612,0.405504,3119.2,3118.3,0.4513]
[1763521578814,0.405504,3119.2,3118.3,0.4523]
[1763521579647,0.405504,3119.0,3118.3,0.001]
[1763521580010,0.188,3118.9,3118.3,0.001]
[1763521581316,0.405504,3118.8,3118.3,0.001]
[1763521581661,0.4545,3118.4,3118.3,0.001]
[1763521581872,0.990504,3118.4,3118.3,0.001]
[1763521582211,0.860004,3118.4,3118.3,0.001]
[1763521582440,0.990504,3118.4,3118.3,0.001]
[1763521584337,0.585,3118.4,3118.3,0.001]
[1763521585045,0.990504,3118.4,3118.3,0.001]
[1763521585349,1.19099532,3118.4,3118.3,0.001]
[1763521585516,1.28809532,3118.4,3118.3,0.001]
[1763521587245,1.19099532,3118.4,3118.3,0.001]
[1763521587628,1.28809532,3118.4,3118.3,0.001]
[1763521588547,1.28911728,3118.4,3118.3,0.001]
[1763521588741,1.19201728,3118.4,3118.3,0.001]
[1763521589153,1.28911728,3118.4,3118.3,0.001]
[1763521589475,1.97768116,3118.4,3118.3,0.001]
[1763521589622,2.26614854,3118.4,3118.3,0.001]
[1763521590145,3.17314118,3118.4,3118.3,0.001]
[1763521591732,4.3223471,3118.4,3118.3,0.001]
[1763521592338,0.405504,3118.3,3117.9,0.001]
[1763521592644,0.001,3118.0,3117.9,0.001]
[1763521592851,0.70471728,3118.0,3117.9,0.001]
[1763521593043,1.02085783,3118.0,3117.9,0.001]
[1763521593246,1.70942171,3118.0,3117.9,0.001]
[1763521593554,1.02085783,3118.0,3117.9,0.001]
[1763521593732,2.17682171,3118.0,3117.9,0.001]
[1763521594057,3.08381435,3118.0,3117.9,0.001]
[1763521594250,2.17682171,3118.0,3117.9,0.001]
[1763521594449,1.30291771,3118.0,3117.9,0.4847]
[1763521594759,0.29821328,3118.0,3117.9,0.9617]
[1763521595855,0.29821328,3118.0,3117.9,0.4847]
[1763521596659,1.28541728,3118.0,3117.9,0.001]
[1763521596858,0.82151728,3118.0,3117.9,0.001]
[1763521597241,1.28541728,3118.0,3117.9,0.001]
[1763521597441,1.18459576,3118.0,3117.9,0.001]
[1763521597645,1.87309603,3118.0,3117.9,0.001]
[1763521597843,1.18459576,3118.0,3117.9,0.001]
[1763521598846,0.72069576,3118.0,3117.9,0.001]
[1763521599044,0.523304,3118.0,3117.9,0.001]
[1763521599768,0.405504,3118.0,3117.9,0.001]
[1763521600140,0.526704,3118.0,3117.9,0.001]
[1763521601280,0.530104,3118.0,3117.9,0.001]
[1763521601784,0.405504,3118.0,3117.9,0.001]
[1763521601992,0.519704,3118.0,3117.9,0.001]
[1763521602636,0.405504,3118.0,3117.9,0.001]
[1763521603051,0.519704,3118.0,3117.9,0.001]
[1763521603293,0.188,3118.9,3117.9,0.001]
[1763521603294,0.471,3118.4,3117.9,0.001]
[1763521603464,0.1142,3118.0,3117.9,0.001]
[1763521603783,0.519704,3118.0,3117.9,0.001]
[1763521607778,0.987204,3118.0,3117.9,0.001]
[1763521608281,0.519704,3118.0,3117.9,0.001]
[1763521608484,0.405504,3118.0,3117.9,0.491]
[1763521609672,0.519704,3118.0,3117.9,0.001]
[1763521611100,0.405504,3118.0,3117.9,0.491]
[1763521612592,0.188,3118.9,3117.9,0.953]
[1763521612757,0.188,3118.9,3118.4,0.49]
[1763521613168,0.405504,3118.8,3118.4,0.49]
[1763521613583,0.876504,3118.8,3118.2,0.6545]
[1763521613996,0.876504,3118.8,3118.2,0.1925]
[1763521614201,0.405504,3118.8,3118.2,0.6545]
[1763521614404,0.471,3119.1,3118.7,0.49]
[1763521614560,0.1988,3119.2,3118.3,0.462]
[1763521614913,6.931,3119.8,3119.1,0.6825]
[1763521615115,0.6931,3119.7,3119.1,0.6825]
[1763521615262,0.90699264,3119.9,3119.1,0.6825]
[1763521615263,6.931,3120.0,3119.1,0.6825]
[1763521615465,0.471,3119.9,3119.1,1.1445]
[1763521615665,0.002,3119.3,3119.1,1.1445]
[1763521616079,0.002,3119.3,3119.2,0.952]
[1763521616394,0.002,3119.3,3119.2,0.49]
[1763521617158,0.002,3119.3,3119.2,0.952]
[1763521619077,0.002,3119.3,3119.2,0.49]
[1763521619476,0.002,3119.3,3118.7,0.462]
[1763521619477,0.4837,3119.3,3118.7,0.462]
[1763521619685,0.0009,3119.2,3118.7,0.462]
[1763521620003,0.002,3119.3,3119.2,0.49]
[1763521620710,0.405504,3119.2,3118.2,0.1925]
[1763521620880,0.0047,3118.8,3118.2,0.6545]
[1763521621080,0.405504,3119.0,3118.2,0.6545]
[1763521621276,0.405504,3119.0,3118.3,0.462]
[1763521621483,0.405504,3118.8,3118.3,0.462]
[1763521621702,0.405504,3118.8,3118.2,0.1925]
[1763521622212,0.876504,3119.1,3118.3,0.462]
[1763521622379,0.405504,3119.1,3118.3,0.462]
[1763521622580,0.405504,3118.9,3118.3,0.462]
[1763521624512,0.1988,3119.2,3118.3,0.462]
[1763521624513,0.405504,3119.1,3118.3,0.462]
[1763521626619,0.858104,3119.1,3118.3,0.462]
[1763521627010,0.858104,3119.1,3118.2,0.1925]
[1763521627011,0.4526,3119.0,3118.2,0.1925]
[1763521627182,0.405504,3118.9,3118.0,0.6424]
[1763521627610,0.4526,3118.9,3118.0,0.6424]
[1763521627815,0.405504,3119.1,3118.1,0.4554]
[1763521628129,0.858104,3119.1,3118.1,0.4554]
[1763521628556,0.405504,3118.9,3118.0,0.187]
[1763521628711,0.405504,3118.9,3117.9,0.001]
[1763521628911,0.405504,3118.7,3117.9,0.001]
[1763521629225,0.858104,3119.1,3117.9,0.001]
[1763521629418,0.405504,3118.9,3117.9,0.001]
[1763521629820,0.1988,3119.2,3118.0,0.4554]
[1763521630146,0.858104,3119.1,3117.9,0.001]
[1763521630318,0.858104,3119.1,3117.9,0.4564]
[1763521630518,0.405504,3118.9,3117.9,0.4564]
[1763521631049,0.527304,3118.0,3117.9,0.001]
[1763521631214,0.405504,3118.0,3117.9,0.001]
[1763521631415,0.405504,3118.0,3117.9,0.9557]
[1763521632042,0.4526,3118.9,3117.9,0.9557]
[1763521632350,0.405504,3118.7,3118.0,0.4554]
[1763521632515,0.405504,3118.9,3118.0,0.4554]
[1763521632715,0.405504,3118.9,3117.9,0.001]
[1763521632941,0.405504,3118.7,3117.9,0.001]
[1763521633447,0.4526,3118.6,3117.9,0.001]
[1763521633839,0.83677073,3119.0,3118.5,0.4993]
[1763521634041,0.83677073,3119.0,3117.9,0.4564]
[1763521634042,0.1218,3118.6,3117.9,0.001]
[1763521634242,0.405504,3118.5,3117.9,0.001]
[1763521634436,0.854804,3118.5,3117.9,0.001]
[1763521635523,0.865304,3118.0,3117.9,0.001]
[1763521635724,0.405504,3118.0,3117.9,0.001]
[1763521635920,0.90699264,3119.0,3117.9,0.9557]
[1763521636120,0.1218,3118.0,3117.9,0.001]
[1763521637037,0.976604,3118.0,3117.9,0.001]
[1763521638059,1.32591861,3118.0,3117.9,0.001]
[1763521638222,1.63650533,3118.0,3117.9,0.001]
[1763521638422,1.61828728,3118.0,3117.9,0.001]
[1763521638745,1.14025453,3118.0,3117.9,0.001]
[1763521639965,0.56915453,3118.0,3117.9,0.001]
[1763521640165,0.12870033,3118.4,3117.9,0.5003]
[1763521640369,0.73689926,3118.9,3118.3,0.6863]
[1763521640653,0.73689926,3118.9,3118.3,1.1417]
[1763521640852,0.405504,3118.8,3118.3,1.1417]
[1763521641021,0.73689926,3118.9,3118.3,1.1417]
[1763521641352,0.16438919,3118.8,3118.3,1.1417]
[1763521641851,0.405504,3118.7,3118.4,0.4554]
[1763521643142,0.405504,3118.7,3118.3,0.187]
[1763521643326,0.405504,3118.7,3118.6,0.4522]
[1763521644378,0.16438919,3118.8,3118.6,0.4522]
[1763521644658,0.73689926,3118.9,3118.6,0.4522]
[1763521644659,0.407504,3119.1,3118.7,0.4522]
[1763521644857,0.002,3119.1,3118.8,0.4522]
[1763521645021,0.002,3119.1,3118.3,0.187]
[1763521645022,0.4819,3119.1,3118.3,0.187]
[1763521645228,0.4819,3119.1,3118.1,0.1899]
[1763521645229,0.405504,3119.0,3118.1,0.1899]
[1763521645746,0.002,3119.1,3118.2,0.4763]
[1763521646839,0.407504,3119.1,3118.2,0.4763]
[1763521647373,0.002,3119.1,3119.0,0.4522]
[1763521648555,0.002,3119.1,3119.0,0.9285]
[1763521652791,0.4721,3119.1,3118.3,0.4763]
[1763521653083,0.405504,3119.0,3118.3,0.4763]
[1763521653273,0.405504,3119.0,3118.9,0.4522]
[1763521653648,0.405504,3119.0,3118.9,0.9285]
[1763521653851,0.002,3119.1,3118.5,0.4763]
[1763521654664,0.4819,3119.1,3118.2,0.4763]
[1763521654866,0.405504,3119.0,3118.2,0.4763]
[1763521655279,0.002,3119.1,3118.2,0.4763]
[1763521657901,0.002,3119.1,3119.0,0.4557]
[1763521658082,0.405504,3119.0,3118.2,0.4763]
[1763521658601,0.405504,3118.8,3118.1,0.1909]
[1763521659198,0.529804,3118.2,3118.1,0.001]
[1763521660090,0.989604,3118.2,3118.1,0.001]
[1763521662195,0.529804,3118.2,3118.1,0.001]
[1763521664375,0.405504,3118.2,3118.1,0.001]
[1763521665004,0.533204,3118.2,3118.1,0.001]
[1763521665225,0.989704,3118.2,3118.1,0.001]
[1763521665530,0.533204,3118.2,3118.1,0.001]
[1763521666097,0.989704,3118.2,3118.1,0.001]
[1763521668298,0.1243,3118.2,3118.1,0.001]